[Event "Titled Tuesday Blitz May 30 Early 2023"]
[White "Schuh, Karsten"]
[Black "Romkachess"]
[WhiteFideId "4637950"]
[WhiteElo "2138"]
[BlackElo "2547"]
[Result "0-1"]
[Round "09"]
[TimeControl "180+2"]
[Date "2023.05.30"]
[WhiteClock "0:00:07"]
[BlackClock "0:00:23"]

1. Nf3 {[%clk 0:03:00]}  Nf6 {[%clk 0:02:59]} 2. c4 {[%clk 0:03:00]}  e6 {[%clk 0:02:59]} 3. g3 {[%clk 0:03:00]}  b6 {[%clk 0:02:59]} 4. Bg2 {[%clk 0:03:00]}  Bb7 {[%clk 0:03:00]} 5. O-O {[%clk 0:03:00]}  Be7 {[%clk 0:02:59]} 6. b3 {[%clk 0:02:58]}  O-O {[%clk 0:03:00]} 7. Bb2 {[%clk 0:02:58]}  c5 {[%clk 0:03:00]} 8. e3 {[%clk 0:02:59]}  Nc6 {[%clk 0:02:59]} 9. Nc3 {[%clk 0:02:58]}  d5 {[%clk 0:02:59]} 10. cxd5 {[%clk 0:02:56]}  Nxd5 {[%clk 0:02:55]} 11. Nxd5 {[%clk 0:02:56]}  Qxd5 {[%clk 0:02:51]} 12. d4 {[%clk 0:02:56]}  Qd7 {[%clk 0:02:28]} 13. dxc5 {[%clk 0:02:32]}  Qxd1 {[%clk 0:02:27]} 14. Rfxd1 {[%clk 0:02:30]}  Bxc5 {[%clk 0:02:27]} 15. Ne5 {[%clk 0:02:13]}  Na5 {[%clk 0:02:15]} 16. Nd7 {[%clk 0:01:25]}  Rfd8 {[%clk 0:02:14]} 17. Nxc5 {[%clk 0:01:21]}  bxc5 {[%clk 0:02:10]} 18. Be5 {[%clk 0:01:10]}  Bxg2 {[%clk 0:02:09]} 19. Kxg2 {[%clk 0:01:10]}  Nc6 {[%clk 0:02:09]} 20. Bd6 {[%clk 0:01:05]}  f6 {[%clk 0:01:42]} 21. Bxc5 {[%clk 0:01:05]}  Kf7 {[%clk 0:01:39]} 22. Kf1 {[%clk 0:01:05]}  e5 {[%clk 0:01:39]} 23. Ke2 {[%clk 0:01:04]}  Ke6 {[%clk 0:01:39]} 24. b4 {[%clk 0:01:02]}  a6 {[%clk 0:01:33]} 25. Rxd8 {[%clk 0:01:01]}  Rxd8 {[%clk 0:01:30]} 26. a4 {[%clk 0:00:54]}  Rb8 {[%clk 0:01:22]} 27. Rb1 {[%clk 0:00:48]}  e4 {[%clk 0:01:17]} 28. Kd2 {[%clk 0:00:42]}  Ne5 {[%clk 0:01:13]} 29. Kc3 {[%clk 0:00:38]}  Kd5 {[%clk 0:01:08]} 30. Bd4 {[%clk 0:00:32]}  Nd3 {[%clk 0:01:01]} 31. b5 {[%clk 0:00:27]}  axb5 {[%clk 0:00:57]} 32. axb5 {[%clk 0:00:27]}  Nxf2 {[%clk 0:00:48]} 33. b6 {[%clk 0:00:27]}  Rb7 {[%clk 0:00:48]} 34. Rb5+ {[%clk 0:00:25]}  Kd6 {[%clk 0:00:46]} 35. Ra5 {[%clk 0:00:20]}  Nd3 {[%clk 0:00:31]} 36. Kc4 {[%clk 0:00:18]}  Kc6 {[%clk 0:00:28]} 37. Ra7 {[%clk 0:00:17]}  Ne1 {[%clk 0:00:24]} 38. Rxb7 {[%clk 0:00:17]}  Kxb7 {[%clk 0:00:24]} 39. Kd5 {[%clk 0:00:17]}  Nf3 {[%clk 0:00:24]} 40. h4 {[%clk 0:00:17]}  f5 {[%clk 0:00:24]} 41. Ke6 {[%clk 0:00:18]}  Nxd4+ {[%clk 0:00:23]} 42. exd4 {[%clk 0:00:07]}  e3 {[%clk 0:00:23]} 0-1


[Site "https://www.chess.com"]

[Event "Titled Tuesday Blitz May 30 Early 2023"]
[White "robertoalejandro10"]
[Black "Gatterer, Florian"]
[BlackFideId "811688"]
[WhiteElo "2516"]
[BlackElo "2221"]
[Result "1-0"]
[Round "09"]
[TimeControl "180+2"]
[Date "2023.05.30"]
[WhiteClock "0:00:14"]
[BlackClock "0:00:00"]

1. Nf3 {[%clk 0:03:00]}  c5 {[%clk 0:02:57]} 2. c4 {[%clk 0:03:00]}  g6 {[%clk 0:02:56]} 3. g3 {[%clk 0:03:00]}  Bg7 {[%clk 0:02:56]} 4. Bg2 {[%clk 0:03:00]}  Nc6 {[%clk 0:02:56]} 5. O-O {[%clk 0:03:00]}  e6 {[%clk 0:02:55]} 6. Nc3 {[%clk 0:02:54]}  Nge7 {[%clk 0:02:55]} 7. d4 {[%clk 0:02:52]}  Nxd4 {[%clk 0:02:53]} 8. Nxd4 {[%clk 0:02:52]}  cxd4 {[%clk 0:02:53]} 9. Nb5 {[%clk 0:02:51]}  d5 {[%clk 0:02:53]} 10. cxd5 {[%clk 0:02:48]}  Nxd5 {[%clk 0:02:53]} 11. Nxd4 {[%clk 0:02:46]}  O-O {[%clk 0:02:49]} 12. e3 {[%clk 0:02:44]}  Bd7 {[%clk 0:02:46]} 13. Qe2 {[%clk 0:02:15]}  Qa5 {[%clk 0:02:36]} 14. Rd1 {[%clk 0:02:11]}  Rac8 {[%clk 0:02:27]} 15. Nb3 {[%clk 0:01:57]}  Qb6 {[%clk 0:02:25]} 16. e4 {[%clk 0:01:55]}  Bb5 {[%clk 0:02:13]} 17. Qe1 {[%clk 0:01:55]}  Ne7 {[%clk 0:01:58]} 18. Be3 {[%clk 0:01:54]}  Qa6 {[%clk 0:01:40]} 19. Nc5 {[%clk 0:01:35]}  Qc6 {[%clk 0:01:39]} 20. e5 {[%clk 0:01:22]}  Nd5 {[%clk 0:01:38]} 21. Rac1 {[%clk 0:01:07]}  Qe8 {[%clk 0:01:02]} 22. Nxb7 {[%clk 0:01:06]}  Rxc1 {[%clk 0:00:48]} 23. Rxc1 {[%clk 0:01:00]}  Bxe5 {[%clk 0:00:46]} 24. Bh6 {[%clk 0:00:57]}  Bg7 {[%clk 0:00:37]} 25. Bxg7 {[%clk 0:00:53]}  Kxg7 {[%clk 0:00:38]} 26. Qe5+ {[%clk 0:00:19]}  Kg8 {[%clk 0:00:32]} 27. Nd6 {[%clk 0:00:17]}  Qb8 {[%clk 0:00:28]} 28. Bxd5 {[%clk 0:00:14]}  exd5 {[%clk 0:00:28]} 29. Qxd5 {[%clk 0:00:15]}  Bd7 {[%clk 0:00:14]} 30. Ne4 {[%clk 0:00:15]}  Be6 {[%clk 0:00:15]} 31. Nf6+ {[%clk 0:00:14]}  Kg7 {[%clk 0:00:15]} 32. Qd4 {[%clk 0:00:15]}  Kh6 {[%clk 0:00:15]} 33. Qe3+ {[%clk 0:00:08]}  Kg7 {[%clk 0:00:15]} 34. Qc3 {[%clk 0:00:09]}  Kh6 {[%clk 0:00:14]} 35. h4 {[%clk 0:00:05]}  Rc8 {[%clk 0:00:14]} 36. Qe3+ {[%clk 0:00:06]}  Kg7 {[%clk 0:00:15]} 37. Ne4 {[%clk 0:00:06]}  Rxc1+ {[%clk 0:00:13]} 38. Qxc1 {[%clk 0:00:07]}  Qe5 {[%clk 0:00:13]} 39. Qc3 {[%clk 0:00:07]}  f6 {[%clk 0:00:12]} 40. Qxe5 {[%clk 0:00:06]}  fxe5 {[%clk 0:00:12]} 41. Nc3 {[%clk 0:00:07]}  Kf7 {[%clk 0:00:12]} 42. Kf1 {[%clk 0:00:08]}  Ke7 {[%clk 0:00:13]} 43. Ke2 {[%clk 0:00:09]}  Kd6 {[%clk 0:00:13]} 44. Ke3 {[%clk 0:00:10]}  Kc5 {[%clk 0:00:14]} 45. Ke4 {[%clk 0:00:10]}  Bf5+ {[%clk 0:00:14]} 46. Kxe5 {[%clk 0:00:10]}  Bc2 {[%clk 0:00:15]} 47. Kf6 {[%clk 0:00:10]}  Kc4 {[%clk 0:00:15]} 48. Kg7 {[%clk 0:00:10]}  Kd3 {[%clk 0:00:16]} 49. Kxh7 {[%clk 0:00:10]}  Kd2 {[%clk 0:00:11]} 50. Kh6 {[%clk 0:00:10]}  Kc1 {[%clk 0:00:11]} 51. Nb5 {[%clk 0:00:10]}  Kxb2 {[%clk 0:00:11]} 52. Nxa7 {[%clk 0:00:10]}  Kxa2 {[%clk 0:00:12]} 53. Nc6 {[%clk 0:00:11]}  Kb3 {[%clk 0:00:12]} 54. Ne5 {[%clk 0:00:11]}  Kc3 {[%clk 0:00:12]} 55. Nxg6 {[%clk 0:00:12]}  Kd4 {[%clk 0:00:12]} 56. Kg7 {[%clk 0:00:12]}  Ke4 {[%clk 0:00:13]} 57. h5 {[%clk 0:00:13]}  Kf3 {[%clk 0:00:13]} 58. h6 {[%clk 0:00:13]}  Kg4 {[%clk 0:00:00]} 59. h7 {[%clk 0:00:14]} 1-0


[Site "https://www.chess.com"]

[Event "Titled Tuesday Blitz May 30 Early 2023"]
[White "Rodriguez Santiago, Jaime"]
[Black "Guz, Ari"]
[WhiteFideId "3100898"]
[BlackFideId "2825759"]
[WhiteElo "2025"]
[BlackElo "2205"]
[Result "1-0"]
[Round "09"]
[TimeControl "180+2"]
[Date "2023.05.30"]
[WhiteClock "0:00:30"]
[BlackClock "0:00:15"]

1. d4 {[%clk 0:03:00]}  a5 {[%clk 0:02:57]} 2. c4 {[%clk 0:03:00]}  a4 {[%clk 0:02:57]} 3. Nc3 {[%clk 0:02:59]}  a3 {[%clk 0:02:54]} 4. b3 {[%clk 0:02:59]}  g6 {[%clk 0:02:53]} 5. e4 {[%clk 0:02:59]}  Bg7 {[%clk 0:02:53]} 6. Be2 {[%clk 0:02:58]}  c5 {[%clk 0:02:53]} 7. Nf3 {[%clk 0:02:55]}  Nc6 {[%clk 0:02:52]} 8. Be3 {[%clk 0:02:54]}  cxd4 {[%clk 0:02:43]} 9. Nxd4 {[%clk 0:02:53]}  Qa5 {[%clk 0:02:40]} 10. Qd2 {[%clk 0:02:47]}  Nxd4 {[%clk 0:02:37]} 11. Bxd4 {[%clk 0:02:46]}  Nf6 {[%clk 0:02:38]} 12. O-O {[%clk 0:02:43]}  Nxe4 {[%clk 0:02:34]} 13. Nxe4 {[%clk 0:02:42]}  Qxd2 {[%clk 0:02:33]} 14. Nxd2 {[%clk 0:02:41]}  Bxd4 {[%clk 0:02:34]} 15. Rad1 {[%clk 0:02:37]}  O-O {[%clk 0:02:31]} 16. Bf3 {[%clk 0:02:31]}  d6 {[%clk 0:02:26]} 17. Rfe1 {[%clk 0:02:25]}  e5 {[%clk 0:02:07]} 18. Ne4 {[%clk 0:02:18]}  Rd8 {[%clk 0:02:00]} 19. Nf6+ {[%clk 0:02:16]}  Kg7 {[%clk 0:01:58]} 20. Nd5 {[%clk 0:02:15]}  Bf5 {[%clk 0:01:57]} 21. Nc7 {[%clk 0:01:52]}  Rab8 {[%clk 0:01:39]} 22. Nb5 {[%clk 0:01:44]}  Bc5 {[%clk 0:01:40]} 23. Bd5 {[%clk 0:01:38]}  b6 {[%clk 0:01:36]} 24. h3 {[%clk 0:01:35]}  h5 {[%clk 0:01:31]} 25. Re2 {[%clk 0:01:12]}  g5 {[%clk 0:01:18]} 26. Red2 {[%clk 0:01:08]}  Bb4 {[%clk 0:01:18]} 27. Re2 {[%clk 0:01:05]}  g4 {[%clk 0:01:19]} 28. hxg4 {[%clk 0:01:05]}  hxg4 {[%clk 0:01:17]} 29. g3 {[%clk 0:01:04]}  Rh8 {[%clk 0:01:15]} 30. Kg2 {[%clk 0:01:00]}  Rh6 {[%clk 0:01:14]} 31. Rh1 {[%clk 0:00:56]}  Rxh1 {[%clk 0:01:05]} 32. Kxh1 {[%clk 0:00:56]}  Bd3 {[%clk 0:01:01]} 33. Re3 {[%clk 0:00:54]}  Bc2 {[%clk 0:01:01]} 34. Re2 {[%clk 0:00:53]}  Bd1 {[%clk 0:01:01]} 35. Re3 {[%clk 0:00:51]}  f5 {[%clk 0:00:59]} 36. Be6 {[%clk 0:00:42]}  Kf6 {[%clk 0:00:53]} 37. Bd5 {[%clk 0:00:42]}  Rh8+ {[%clk 0:00:40]} 38. Kg1 {[%clk 0:00:41]}  Bc5 {[%clk 0:00:33]} 39. Rd3 {[%clk 0:00:39]}  Bc2 {[%clk 0:00:31]} 40. Rd2 {[%clk 0:00:39]}  Bb1 {[%clk 0:00:24]} 41. Bg2 {[%clk 0:00:38]}  f4 {[%clk 0:00:22]} 42. gxf4 {[%clk 0:00:38]}  exf4 {[%clk 0:00:23]} 43. Nc3 {[%clk 0:00:38]}  f3 {[%clk 0:00:18]} 44. Nxb1 {[%clk 0:00:36]}  fxg2 {[%clk 0:00:18]} 45. Kxg2 {[%clk 0:00:37]}  Re8 {[%clk 0:00:17]} 46. Nc3 {[%clk 0:00:33]}  Re1 {[%clk 0:00:16]} 47. Nd5+ {[%clk 0:00:32]}  Kg5 {[%clk 0:00:16]} 48. b4 {[%clk 0:00:33]}  Rc1 {[%clk 0:00:14]} 49. bxc5 {[%clk 0:00:32]}  bxc5 {[%clk 0:00:15]} 50. Ne3 {[%clk 0:00:31]}  Rxc4 {[%clk 0:00:15]} 51. Nxc4 {[%clk 0:00:30]} 1-0


[Site "https://www.chess.com"]

[Event "Titled Tuesday Blitz May 30 Early 2023"]
[White "Sharapov, Evgeny"]
[Black "KorolDimitriy75"]
[WhiteFideId "14103133"]
[WhiteElo "2367"]
[BlackElo "2409"]
[Result "1/2-1/2"]
[Round "09"]
[TimeControl "180+2"]
[Date "2023.05.30"]
[WhiteClock "0:00:11"]
[BlackClock "0:00:13"]

1. e4 {[%clk 0:02:59]}  c5 {[%clk 0:03:00]} 2. Nf3 {[%clk 0:02:59]}  g6 {[%clk 0:03:00]} 3. d4 {[%clk 0:02:59]}  cxd4 {[%clk 0:03:01]} 4. Nxd4 {[%clk 0:03:00]}  Nf6 {[%clk 0:03:01]} 5. Nc3 {[%clk 0:02:59]}  d6 {[%clk 0:03:01]} 6. g3 {[%clk 0:02:57]}  Nc6 {[%clk 0:02:58]} 7. Nde2 {[%clk 0:02:56]}  Bd7 {[%clk 0:02:56]} 8. Bg2 {[%clk 0:02:57]}  Qc8 {[%clk 0:02:56]} 9. Nf4 {[%clk 0:02:56]}  Bg7 {[%clk 0:02:54]} 10. O-O {[%clk 0:02:55]}  O-O {[%clk 0:02:52]} 11. Ncd5 {[%clk 0:02:55]}  Nxd5 {[%clk 0:02:46]} 12. exd5 {[%clk 0:02:54]}  Ne5 {[%clk 0:02:45]} 13. c3 {[%clk 0:02:54]}  b5 {[%clk 0:02:29]} 14. a3 {[%clk 0:02:54]}  a5 {[%clk 0:02:28]} 15. Ne2 {[%clk 0:02:47]}  Bh3 {[%clk 0:02:21]} 16. Nd4 {[%clk 0:02:45]}  Bxg2 {[%clk 0:02:19]} 17. Kxg2 {[%clk 0:02:46]}  Qb7 {[%clk 0:02:13]} 18. Nf3 {[%clk 0:02:45]}  Rfc8 {[%clk 0:02:00]} 19. Nxe5 {[%clk 0:02:44]}  Bxe5 {[%clk 0:02:01]} 20. Be3 {[%clk 0:02:43]}  b4 {[%clk 0:01:51]} 21. axb4 {[%clk 0:02:42]}  axb4 {[%clk 0:01:50]} 22. Rxa8 {[%clk 0:02:41]}  Qxa8 {[%clk 0:01:05]} 23. cxb4 {[%clk 0:02:40]}  Bxb2 {[%clk 0:01:04]} 24. b5 {[%clk 0:02:31]}  Ba3 {[%clk 0:00:53]} 25. Qb3 {[%clk 0:02:14]}  Bc5 {[%clk 0:00:53]} 26. Rc1 {[%clk 0:02:11]}  e6 {[%clk 0:00:27]} 27. b6 {[%clk 0:01:58]}  Qb7 {[%clk 0:00:26]} 28. Kg1 {[%clk 0:00:59]}  exd5 {[%clk 0:00:22]} 29. Rd1 {[%clk 0:00:57]}  Rc6 {[%clk 0:00:19]} 30. Qxd5 {[%clk 0:00:33]}  Qxb6 {[%clk 0:00:18]} 31. Bxc5 {[%clk 0:00:31]}  Qxc5 {[%clk 0:00:18]} 32. Qe4 {[%clk 0:00:27]}  Rc8 {[%clk 0:00:17]} 33. h4 {[%clk 0:00:26]}  h5 {[%clk 0:00:16]} 34. Rd5 {[%clk 0:00:25]}  Qc6 {[%clk 0:00:15]} 35. Qd4 {[%clk 0:00:24]}  Re8 {[%clk 0:00:14]} 36. Kh2 {[%clk 0:00:23]}  Re1 {[%clk 0:00:13]} 37. Qd2 {[%clk 0:00:12]}  Qc1 {[%clk 0:00:12]} 38. Qxc1 {[%clk 0:00:12]}  Rxc1 {[%clk 0:00:13]} 39. Rxd6 {[%clk 0:00:13]}  Rc2 {[%clk 0:00:13]} 40. Kg2 {[%clk 0:00:13]}  Rb2 {[%clk 0:00:13]} 41. Kf3 {[%clk 0:00:12]}  Rb3+ {[%clk 0:00:13]} 42. Kg2 {[%clk 0:00:12]}  Kg7 {[%clk 0:00:13]} 43. Rc6 {[%clk 0:00:11]}  Rb2 {[%clk 0:00:13]} 44. Kf3 {[%clk 0:00:11]}  Rb3+ {[%clk 0:00:13]} 1/2-1/2


[Site "https://www.chess.com"]

[Event "Titled Tuesday Blitz May 30 Early 2023"]
[White "Parpiev, Isaak"]
[Black "Toktomushev, Teimur"]
[WhiteFideId "34281576"]
[BlackFideId "14176726"]
[WhiteElo "2115"]
[BlackElo "2116"]
[Result "1-0"]
[Round "09"]
[TimeControl "180+2"]
[Date "2023.05.30"]
[WhiteClock "0:00:54"]
[BlackClock "0:00:00"]

1. e4 {[%clk 0:03:00]}  c5 {[%clk 0:02:57]} 2. Nf3 {[%clk 0:03:00]}  e6 {[%clk 0:02:58]} 3. c3 {[%clk 0:02:59]}  d5 {[%clk 0:02:57]} 4. e5 {[%clk 0:02:55]}  d4 {[%clk 0:02:57]} 5. Bd3 {[%clk 0:02:54]}  Bd7 {[%clk 0:02:55]} 6. O-O {[%clk 0:02:52]}  Bc6 {[%clk 0:02:55]} 7. Na3 {[%clk 0:02:47]}  Nd7 {[%clk 0:02:54]} 8. Re1 {[%clk 0:02:46]}  Ne7 {[%clk 0:02:53]} 9. Nb5 {[%clk 0:02:35]}  Ng6 {[%clk 0:02:48]} 10. cxd4 {[%clk 0:02:35]}  a6 {[%clk 0:01:22]} 11. Nd6+ {[%clk 0:02:31]}  Bxd6 {[%clk 0:01:21]} 12. exd6 {[%clk 0:02:32]}  Bxf3 {[%clk 0:01:22]} 13. Qxf3 {[%clk 0:02:31]}  cxd4 {[%clk 0:01:23]} 14. Qxb7 {[%clk 0:02:27]}  O-O {[%clk 0:01:22]} 15. Bxg6 {[%clk 0:02:22]}  hxg6 {[%clk 0:01:20]} 16. d3 {[%clk 0:02:08]}  Nc5 {[%clk 0:01:12]} 17. Qf3 {[%clk 0:01:45]}  Qxd6 {[%clk 0:01:12]} 18. Bf4 {[%clk 0:01:45]}  Qb6 {[%clk 0:00:46]} 19. b3 {[%clk 0:01:45]}  a5 {[%clk 0:00:38]} 20. Be5 {[%clk 0:01:43]}  Rad8 {[%clk 0:00:25]} 21. h4 {[%clk 0:01:35]}  Rd5 {[%clk 0:00:20]} 22. Rac1 {[%clk 0:01:22]}  f6 {[%clk 0:00:15]} 23. Bg3 {[%clk 0:01:20]}  Rf5 {[%clk 0:00:10]} 24. Qd1 {[%clk 0:01:13]}  Qa6 {[%clk 0:00:03]} 25. Rc4 {[%clk 0:01:12]}  Rc8 {[%clk 0:00:02]} 26. Rxd4 {[%clk 0:01:10]}  e5 {[%clk 0:00:02]} 27. Rc4 {[%clk 0:01:10]}  Qb5 {[%clk 0:00:01]} 28. d4 {[%clk 0:01:09]}  exd4 {[%clk 0:00:01]} 29. Qxd4 {[%clk 0:01:10]}  Kh7 {[%clk 0:00:01]} 30. Rec1 {[%clk 0:01:08]}  Ne6 {[%clk 0:00:01]} 31. Qc3 {[%clk 0:00:58]}  Rxc4 {[%clk 0:00:02]} 32. Qxc4 {[%clk 0:00:58]}  Qb6 {[%clk 0:00:02]} 33. Re1 {[%clk 0:00:57]}  Nc5 {[%clk 0:00:01]} 34. Qd4 {[%clk 0:00:54]}  Ne6 {[%clk 0:00:00]} 35. Qxb6 {[%clk 0:00:54]} 1-0


[Site "https://www.chess.com"]

[Event "Titled Tuesday Blitz May 30 Early 2023"]
[White "Staudenhocker43"]
[Black "Makhmudov, Shukhrat"]
[BlackFideId "14200775"]
[WhiteElo "2514"]
[BlackElo "2135"]
[Result "1-0"]
[Round "09"]
[TimeControl "180+2"]
[Date "2023.05.30"]
[WhiteClock "0:02:13"]
[BlackClock "0:02:21"]

1. d4 {[%clk 0:03:00]}  Nf6 {[%clk 0:03:00]} 2. c4 {[%clk 0:03:00]}  e6 {[%clk 0:02:59]} 3. g3 {[%clk 0:03:00]}  d5 {[%clk 0:02:59]} 4. Bg2 {[%clk 0:03:00]}  Be7 {[%clk 0:02:59]} 5. Nf3 {[%clk 0:03:00]}  O-O {[%clk 0:02:59]} 6. Nc3 {[%clk 0:03:00]}  c6 {[%clk 0:02:59]} 7. O-O {[%clk 0:02:57]}  Nbd7 {[%clk 0:02:59]} 8. Qd3 {[%clk 0:02:54]}  b6 {[%clk 0:02:57]} 9. e4 {[%clk 0:02:49]}  dxe4 {[%clk 0:02:53]} 10. Nxe4 {[%clk 0:02:50]}  c5 {[%clk 0:02:52]} 11. Rd1 {[%clk 0:02:43]}  cxd4 {[%clk 0:02:50]} 12. Nxd4 {[%clk 0:02:38]}  Bb7 {[%clk 0:02:50]} 13. Nxf6+ {[%clk 0:02:36]}  Bxf6 {[%clk 0:02:48]} 14. Bxb7 {[%clk 0:02:36]}  Nc5 {[%clk 0:02:48]} 15. Qf3 {[%clk 0:02:31]}  Bxd4 {[%clk 0:02:45]} 16. Bxa8 {[%clk 0:02:28]}  e5 {[%clk 0:02:34]} 17. Bd5 {[%clk 0:02:25]}  Qe7 {[%clk 0:02:31]} 18. Qe2 {[%clk 0:02:15]}  Qf6 {[%clk 0:02:21]} 19. Be3 {[%clk 0:02:13]} 1-0


[Site "https://www.chess.com"]

[Event "Titled Tuesday Blitz May 30 Early 2023"]
[White "Novikova, Galina"]
[Black "Baches Garcia, Guillermo"]
[WhiteFideId "4157095"]
[BlackFideId "2209764"]
[WhiteElo "1953"]
[BlackElo "2505"]
[Result "1/2-1/2"]
[Round "09"]
[TimeControl "180+2"]
[Date "2023.05.30"]
[WhiteClock "0:00:07"]
[BlackClock "0:00:07"]

1. e4 {[%clk 0:02:52]}  d5 {[%clk 0:02:59]} 2. exd5 {[%clk 0:02:51]}  Qxd5 {[%clk 0:03:00]} 3. Nf3 {[%clk 0:02:50]}  Bg4 {[%clk 0:02:59]} 4. Be2 {[%clk 0:02:51]}  Nc6 {[%clk 0:03:00]} 5. d4 {[%clk 0:02:52]}  O-O-O {[%clk 0:02:52]} 6. Be3 {[%clk 0:02:50]}  e5 {[%clk 0:02:51]} 7. c4 {[%clk 0:02:50]}  Qa5+ {[%clk 0:02:50]} 8. Bd2 {[%clk 0:02:49]}  Qa6 {[%clk 0:02:50]} 9. d5 {[%clk 0:02:49]}  Bxf3 {[%clk 0:02:43]} 10. Bxf3 {[%clk 0:02:48]}  Nd4 {[%clk 0:02:43]} 11. Be2 {[%clk 0:02:28]}  Nf6 {[%clk 0:02:40]} 12. Nc3 {[%clk 0:02:26]}  Bb4 {[%clk 0:02:35]} 13. O-O {[%clk 0:02:24]}  Nxe2+ {[%clk 0:02:08]} 14. Qxe2 {[%clk 0:02:17]}  Rhe8 {[%clk 0:01:55]} 15. Rfe1 {[%clk 0:01:54]}  e4 {[%clk 0:01:42]} 16. a3 {[%clk 0:01:51]}  Bc5 {[%clk 0:01:35]} 17. b4 {[%clk 0:01:50]}  Bd4 {[%clk 0:01:28]} 18. Rac1 {[%clk 0:01:44]}  e3 {[%clk 0:01:16]} 19. Bxe3 {[%clk 0:01:25]}  Bxe3 {[%clk 0:01:13]} 20. fxe3 {[%clk 0:01:26]}  Kb8 {[%clk 0:01:13]} 21. a4 {[%clk 0:01:07]}  h5 {[%clk 0:01:05]} 22. a5 {[%clk 0:00:48]}  Re5 {[%clk 0:00:57]} 23. h3 {[%clk 0:00:33]}  Rde8 {[%clk 0:00:54]} 24. Qd3 {[%clk 0:00:34]}  Ne4 {[%clk 0:00:38]} 25. Nb5 {[%clk 0:00:28]}  Nd6 {[%clk 0:00:26]} 26. Nd4 {[%clk 0:00:26]}  g6 {[%clk 0:00:22]} 27. Rb1 {[%clk 0:00:25]}  Nf5 {[%clk 0:00:21]} 28. b5 {[%clk 0:00:25]}  Qxa5 {[%clk 0:00:15]} 29. Qb3 {[%clk 0:00:16]}  Nxd4 {[%clk 0:00:13]} 30. Qb2 {[%clk 0:00:13]}  Nf5 {[%clk 0:00:10]} 31. Ra1 {[%clk 0:00:12]}  Qb6 {[%clk 0:00:10]} 32. Kh1 {[%clk 0:00:11]}  Nxe3 {[%clk 0:00:10]} 33. Qc3 {[%clk 0:00:08]}  Ng4 {[%clk 0:00:09]} 34. hxg4 {[%clk 0:00:06]}  Rxe1+ {[%clk 0:00:09]} 35. Rxe1 {[%clk 0:00:07]}  Rxe1+ {[%clk 0:00:08]} 36. Qxe1 {[%clk 0:00:08]}  a5 {[%clk 0:00:09]} 37. gxh5 {[%clk 0:00:06]}  gxh5 {[%clk 0:00:08]} 38. Qe8+ {[%clk 0:00:05]}  Ka7 {[%clk 0:00:09]} 39. Qxf7 {[%clk 0:00:06]}  a4 {[%clk 0:00:09]} 40. Qxh5 {[%clk 0:00:04]}  a3 {[%clk 0:00:08]} 41. Qd1 {[%clk 0:00:04]}  Qa5 {[%clk 0:00:08]} 42. Qa1 {[%clk 0:00:04]}  a2 {[%clk 0:00:08]} 43. Kh2 {[%clk 0:00:05]}  Qa3 {[%clk 0:00:08]} 44. c5 {[%clk 0:00:05]}  Qb3 {[%clk 0:00:07]} 45. b6+ {[%clk 0:00:05]}  cxb6 {[%clk 0:00:07]} 46. cxb6+ {[%clk 0:00:06]}  Kxb6 {[%clk 0:00:07]} 47. Qd4+ {[%clk 0:00:06]}  Ka6 {[%clk 0:00:08]} 48. d6 {[%clk 0:00:06]}  Qb1 {[%clk 0:00:06]} 49. Qa4+ {[%clk 0:00:05]}  Kb6 {[%clk 0:00:05]} 50. d7 {[%clk 0:00:05]}  Kc7 {[%clk 0:00:04]} 51. Qd4 {[%clk 0:00:03]}  Kd8 {[%clk 0:00:03]} 52. Qh8+ {[%clk 0:00:02]}  Kxd7 {[%clk 0:00:03]} 53. Qd4+ {[%clk 0:00:03]}  Kc8 {[%clk 0:00:04]} 54. Qc5+ {[%clk 0:00:03]}  Kb8 {[%clk 0:00:04]} 55. Qf8+ {[%clk 0:00:04]}  Ka7 {[%clk 0:00:04]} 56. Qa3+ {[%clk 0:00:05]}  Kb8 {[%clk 0:00:04]} 57. Qf8+ {[%clk 0:00:05]}  Kc7 {[%clk 0:00:04]} 58. Qe7+ {[%clk 0:00:05]}  Kc6 {[%clk 0:00:04]} 59. Qe6+ {[%clk 0:00:05]}  Kb5 {[%clk 0:00:05]} 60. Qd7+ {[%clk 0:00:05]}  Ka6 {[%clk 0:00:05]} 61. Qa4+ {[%clk 0:00:05]}  Kb6 {[%clk 0:00:05]} 62. Qd4+ {[%clk 0:00:05]}  Kc7 {[%clk 0:00:05]} 63. Qc5+ {[%clk 0:00:05]}  Kd8 {[%clk 0:00:05]} 64. Qf8+ {[%clk 0:00:05]}  Kd7 {[%clk 0:00:05]} 65. Qf7+ {[%clk 0:00:05]}  Kc6 {[%clk 0:00:05]} 66. Qe6+ {[%clk 0:00:05]}  Kc7 {[%clk 0:00:06]} 67. Qe7+ {[%clk 0:00:05]}  Kb8 {[%clk 0:00:06]} 68. Qd8+ {[%clk 0:00:05]}  Ka7 {[%clk 0:00:06]} 69. Qa5+ {[%clk 0:00:05]}  Kb8 {[%clk 0:00:06]} 70. Qd8+ {[%clk 0:00:06]}  Ka7 {[%clk 0:00:06]} 71. Qa5+ {[%clk 0:00:06]}  Kb8 {[%clk 0:00:07]} 72. Qd8+ {[%clk 0:00:07]} 1/2-1/2


[Site "https://www.chess.com"]